[Event "Titled Tuesday Blitz August 17 2021"]
[White "Sokolovsky, Yahli"]
[Black "Obregon, Andres Carlos"]
[WhiteFideId "2820242"]
[BlackFideId "111724"]
[WhiteElo "1770"]
[BlackElo "2572"]
[Result "0-1"]
[Round "01"]
[TimeControl "180+1"]
[Date "2021.08.17"]
[WhiteClock "0:00:02"]
[BlackClock "0:01:37"]

1. b3 {[%clk 0:02:58]}  e5 {[%clk 0:02:59]} 2. Bb2 {[%clk 0:02:58]}  Nc6 {[%clk 0:02:59]} 3. e3 {[%clk 0:02:59]}  Nf6 {[%clk 0:02:59]} 4. Bb5 {[%clk 0:02:49]}  Bd6 {[%clk 0:02:59]} 5. Na3 {[%clk 0:02:48]}  Na5 {[%clk 0:02:58]} 6. Be2 {[%clk 0:02:47]}  a6 {[%clk 0:02:57]} 7. c4 {[%clk 0:02:14]}  O-O {[%clk 0:02:53]} 8. d4 {[%clk 0:02:07]}  exd4 {[%clk 0:02:41]} 9. exd4 {[%clk 0:02:06]}  Bb4+ {[%clk 0:02:41]} 10. Kf1 {[%clk 0:02:06]}  d5 {[%clk 0:02:40]} 11. Nc2 {[%clk 0:01:52]}  Be7 {[%clk 0:02:38]} 12. c5 {[%clk 0:01:44]}  Nc6 {[%clk 0:02:30]} 13. g3 {[%clk 0:01:43]}  Ne4 {[%clk 0:02:28]} 14. f3 {[%clk 0:01:34]}  Ng5 {[%clk 0:02:25]} 15. h4 {[%clk 0:01:34]}  Ne6 {[%clk 0:02:25]} 16. Kg2 {[%clk 0:01:34]}  Bf6 {[%clk 0:02:25]} 17. Rb1 {[%clk 0:01:08]}  Re8 {[%clk 0:02:24]} 18. f4 {[%clk 0:01:03]}  Nexd4 {[%clk 0:02:21]} 19. Nxd4 {[%clk 0:00:55]}  Bxd4 {[%clk 0:02:20]} 20. Bxd4 {[%clk 0:00:56]}  Bf5 {[%clk 0:02:20]} 21. Rc1 {[%clk 0:00:48]}  Nxd4 {[%clk 0:02:15]} 22. Qxd4 {[%clk 0:00:48]}  Re4 {[%clk 0:02:15]} 23. Qd2 {[%clk 0:00:45]}  Qe7 {[%clk 0:02:13]} 24. Bf3 {[%clk 0:00:45]}  Re3 {[%clk 0:02:13]} 25. Ne2 {[%clk 0:00:30]}  Rd3 {[%clk 0:01:59]} 26. Qe1 {[%clk 0:00:16]}  Re8 {[%clk 0:01:58]} 27. Nc3 {[%clk 0:00:03]}  Qd7 {[%clk 0:01:42]} 28. Qf2 {[%clk 0:00:03]}  d4 {[%clk 0:01:42]} 29. Ne2 {[%clk 0:00:03]}  Rxf3 {[%clk 0:01:37]} 30. Kxf3 {[%clk 0:00:02]}  Be4# {[%clk 0:01:37]} 0-1


[Site "https://www.chess.com"]

[Event "Titled Tuesday Blitz August 17 2021"]
[White "Steinberg, Nitzan"]
[Black "Quinones Garcia, Santiago"]
[WhiteFideId "2801795"]
[BlackFideId "4408497"]
[WhiteElo "2440"]
[BlackElo "2187"]
[Result "1/2-1/2"]
[Round "01"]
[TimeControl "180+1"]
[Date "2021.08.17"]
[WhiteClock "0:00:42"]
[BlackClock "0:00:14"]

1. e4 {[%clk 0:03:00]}  c5 {[%clk 0:02:56]} 2. Nf3 {[%clk 0:03:00]}  g6 {[%clk 0:02:56]} 3. d4 {[%clk 0:02:58]}  cxd4 {[%clk 0:02:57]} 4. Nxd4 {[%clk 0:02:56]}  Nc6 {[%clk 0:02:56]} 5. Nc3 {[%clk 0:02:53]}  Bg7 {[%clk 0:02:56]} 6. Be3 {[%clk 0:02:54]}  Nf6 {[%clk 0:02:55]} 7. Bc4 {[%clk 0:02:53]}  O-O {[%clk 0:02:52]} 8. Bb3 {[%clk 0:02:51]}  d6 {[%clk 0:02:50]} 9. h3 {[%clk 0:02:45]}  Bd7 {[%clk 0:02:45]} 10. O-O {[%clk 0:02:40]}  Nxd4 {[%clk 0:02:45]} 11. Bxd4 {[%clk 0:02:40]}  Bc6 {[%clk 0:02:46]} 12. Qe2 {[%clk 0:02:37]}  a5 {[%clk 0:02:44]} 13. a4 {[%clk 0:02:36]}  e5 {[%clk 0:02:36]} 14. Be3 {[%clk 0:02:35]}  Nxe4 {[%clk 0:02:33]} 15. Nd5 {[%clk 0:02:34]}  Nc5 {[%clk 0:02:23]} 16. Bxc5 {[%clk 0:02:26]}  dxc5 {[%clk 0:02:23]} 17. Rad1 {[%clk 0:02:26]}  Bxd5 {[%clk 0:02:13]} 18. Rxd5 {[%clk 0:02:16]}  Qc7 {[%clk 0:02:11]} 19. Rfd1 {[%clk 0:02:16]}  Rad8 {[%clk 0:02:09]} 20. Qb5 {[%clk 0:02:09]}  Rxd5 {[%clk 0:01:36]} 21. Rxd5 {[%clk 0:02:10]}  b6 {[%clk 0:01:12]} 22. Rd7 {[%clk 0:02:09]}  Qb8 {[%clk 0:01:12]} 23. Bd5 {[%clk 0:02:06]}  e4 {[%clk 0:00:48]} 24. Bxe4 {[%clk 0:01:40]}  Qf4 {[%clk 0:00:46]} 25. Bd5 {[%clk 0:01:31]}  Bd4 {[%clk 0:00:44]} 26. Qe2 {[%clk 0:01:16]}  Bxb2 {[%clk 0:00:32]} 27. g3 {[%clk 0:01:07]}  Qf5 {[%clk 0:00:31]} 28. Bc6 {[%clk 0:01:04]}  Bd4 {[%clk 0:00:28]} 29. Kg2 {[%clk 0:01:01]}  Kg7 {[%clk 0:00:26]} 30. h4 {[%clk 0:00:56]}  Rc8 {[%clk 0:00:21]} 31. Bb5 {[%clk 0:00:55]}  Re8 {[%clk 0:00:13]} 32. Qxe8 {[%clk 0:00:50]}  Qxf2+ {[%clk 0:00:14]} 33. Kh3 {[%clk 0:00:50]}  Qf5+ {[%clk 0:00:14]} 34. Kg2 {[%clk 0:00:41]}  Qf2+ {[%clk 0:00:14]} 35. Kh3 {[%clk 0:00:41]}  Qf5+ {[%clk 0:00:14]} 36. Kg2 {[%clk 0:00:42]}  Qf2+ {[%clk 0:00:14]} 1/2-1/2


[Site "https://www.chess.com"]

[Event "Titled Tuesday Blitz August 17 2021"]
[White "Taboas Rodriguez, Daniel"]
[Black "Krzywda, Andrzej"]
[WhiteFideId "2208466"]
[BlackFideId "1114565"]
[WhiteElo "2429"]
[BlackElo "2100"]
[Result "1-0"]
[Round "01"]
[TimeControl "180+1"]
[Date "2021.08.18"]
[WhiteClock "0:01:09"]
[BlackClock "0:00:03"]

1. d4 {[%clk 0:02:59]}  Nf6 {[%clk 0:02:59]} 2. Nf3 {[%clk 0:03:00]}  c5 {[%clk 0:02:59]} 3. d5 {[%clk 0:03:00]}  b5 {[%clk 0:02:59]} 4. c4 {[%clk 0:03:01]}  b4 {[%clk 0:02:58]} 5. Bg5 {[%clk 0:03:00]}  d6 {[%clk 0:02:55]} 6. Nbd2 {[%clk 0:03:00]}  g6 {[%clk 0:02:55]} 7. e4 {[%clk 0:02:59]}  Bg7 {[%clk 0:02:54]} 8. Bd3 {[%clk 0:03:00]}  O-O {[%clk 0:02:55]} 9. O-O {[%clk 0:03:00]}  a5 {[%clk 0:02:54]} 10. Qc2 {[%clk 0:02:57]}  Ra7 {[%clk 0:02:43]} 11. Rae1 {[%clk 0:02:58]}  e5 {[%clk 0:02:42]} 12. dxe6 {[%clk 0:02:47]}  Bxe6 {[%clk 0:02:42]} 13. e5 {[%clk 0:02:47]}  dxe5 {[%clk 0:02:41]} 14. Nxe5 {[%clk 0:02:48]}  Qc8 {[%clk 0:02:26]} 15. Ndf3 {[%clk 0:02:38]}  Nfd7 {[%clk 0:02:00]} 16. Bf4 {[%clk 0:02:33]}  Nc6 {[%clk 0:01:49]} 17. Nxc6 {[%clk 0:02:29]}  Qxc6 {[%clk 0:01:50]} 18. Be4 {[%clk 0:02:29]}  Qc8 {[%clk 0:01:47]} 19. Ng5 {[%clk 0:02:29]}  Re8 {[%clk 0:01:43]} 20. b3 {[%clk 0:02:13]}  Nf6 {[%clk 0:01:20]} 21. Nxe6 {[%clk 0:02:10]}  Qxe6 {[%clk 0:01:16]} 22. f3 {[%clk 0:02:04]}  Nxe4 {[%clk 0:01:12]} 23. Rxe4 {[%clk 0:02:04]}  Bd4+ {[%clk 0:01:12]} 24. Kh1 {[%clk 0:02:04]}  Qc8 {[%clk 0:01:07]} 25. Rfe1 {[%clk 0:02:02]}  Rd8 {[%clk 0:00:55]} 26. Bh6 {[%clk 0:02:00]}  Qc6 {[%clk 0:00:48]} 27. Qe2 {[%clk 0:01:58]}  Raa8 {[%clk 0:00:45]} 28. Re7 {[%clk 0:01:42]}  Bg7 {[%clk 0:00:41]} 29. Bxg7 {[%clk 0:01:35]}  Kxg7 {[%clk 0:00:42]} 30. Qe5+ {[%clk 0:01:35]}  Kg8 {[%clk 0:00:20]} 31. h4 {[%clk 0:01:34]}  h5 {[%clk 0:00:15]} 32. Qg5 {[%clk 0:01:28]}  Rf8 {[%clk 0:00:11]} 33. R1e6 {[%clk 0:01:22]}  Qxe6 {[%clk 0:00:03]} 34. Rxe6 {[%clk 0:01:22]}  fxe6 {[%clk 0:00:04]} 35. Qxg6+ {[%clk 0:01:23]}  Kh8 {[%clk 0:00:05]} 36. Qh6+ {[%clk 0:01:18]}  Kg8 {[%clk 0:00:05]} 37. Qxe6+ {[%clk 0:01:19]}  Kg7 {[%clk 0:00:04]} 38. Qe5+ {[%clk 0:01:16]}  Kg6 {[%clk 0:00:04]} 39. Qg5+ {[%clk 0:01:16]}  Kh7 {[%clk 0:00:04]} 40. Qxh5+ {[%clk 0:01:17]}  Kg7 {[%clk 0:00:04]} 41. Qg5+ {[%clk 0:01:17]}  Kh7 {[%clk 0:00:05]} 42. Qxc5 {[%clk 0:01:18]}  Rad8 {[%clk 0:00:03]} 43. Qxa5 {[%clk 0:01:16]}  Rd2 {[%clk 0:00:01]} 44. Qxb4 {[%clk 0:01:15]}  Rfd8 {[%clk 0:00:01]} 45. Qe7+ {[%clk 0:01:14]}  Kg8 {[%clk 0:00:01]} 46. h5 {[%clk 0:01:11]}  R8d7 {[%clk 0:00:01]} 47. Qg5+ {[%clk 0:01:11]}  Kh7 {[%clk 0:00:02]} 48. Kh2 {[%clk 0:01:11]}  Kh8 {[%clk 0:00:03]} 49. Kh3 {[%clk 0:01:09]}  Rg7 {[%clk 0:00:03]} 50. Qxd2 {[%clk 0:01:09]} 1-0


[Site "https://www.chess.com"]

[Event "Titled Tuesday Blitz August 17 2021"]
[White "Temirkanov, David"]
[Black "Wagner, Dennis"]
[WhiteFideId "4168534"]
[BlackFideId "24650684"]
[WhiteElo "2125"]
[BlackElo "2355"]
[Result "0-1"]
[Round "01"]
[TimeControl "180+1"]
[Date "2021.08.17"]
[WhiteClock "0:00:25"]
[BlackClock "0:01:09"]

1. e4 {[%clk 0:02:56]}  c5 {[%clk 0:03:00]} 2. Nf3 {[%clk 0:02:54]}  d6 {[%clk 0:03:00]} 3. d4 {[%clk 0:02:52]}  cxd4 {[%clk 0:03:01]} 4. Qxd4 {[%clk 0:02:52]}  Nf6 {[%clk 0:03:01]} 5. Nc3 {[%clk 0:02:51]}  Nc6 {[%clk 0:03:01]} 6. Bb5 {[%clk 0:02:50]}  Bd7 {[%clk 0:02:57]} 7. Bxc6 {[%clk 0:02:50]}  Bxc6 {[%clk 0:02:57]} 8. Bg5 {[%clk 0:02:50]}  e6 {[%clk 0:02:55]} 9. O-O-O {[%clk 0:02:49]}  Be7 {[%clk 0:02:55]} 10. Rhe1 {[%clk 0:02:45]}  Qa5 {[%clk 0:02:52]} 11. Qd2 {[%clk 0:02:40]}  h6 {[%clk 0:02:47]} 12. Bf4 {[%clk 0:02:36]}  e5 {[%clk 0:02:40]} 13. Bg3 {[%clk 0:02:31]}  Rc8 {[%clk 0:02:38]} 14. Kb1 {[%clk 0:02:30]}  b5 {[%clk 0:02:32]} 15. Nd5 {[%clk 0:02:17]}  Qxd2 {[%clk 0:02:31]} 16. Nxf6+ {[%clk 0:02:16]}  Bxf6 {[%clk 0:02:26]} 17. Rxd2 {[%clk 0:02:17]}  Be7 {[%clk 0:02:21]} 18. Nh4 {[%clk 0:01:59]}  g6 {[%clk 0:02:19]} 19. Nf3 {[%clk 0:01:55]}  f6 {[%clk 0:02:14]} 20. Ng1 {[%clk 0:01:51]}  Kf7 {[%clk 0:02:13]} 21. f3 {[%clk 0:01:51]}  Ke6 {[%clk 0:02:10]} 22. Ne2 {[%clk 0:01:49]}  b4 {[%clk 0:02:11]} 23. Nc1 {[%clk 0:01:41]}  a5 {[%clk 0:02:05]} 24. Nd3 {[%clk 0:01:34]}  h5 {[%clk 0:02:03]} 25. Red1 {[%clk 0:01:22]}  h4 {[%clk 0:02:00]} 26. Bf2 {[%clk 0:01:22]}  f5 {[%clk 0:02:00]} 27. exf5+ {[%clk 0:01:14]}  gxf5 {[%clk 0:02:01]} 28. Re1 {[%clk 0:01:14]}  Kf7 {[%clk 0:01:47]} 29. Rde2 {[%clk 0:00:58]}  h3 {[%clk 0:01:42]} 30. gxh3 {[%clk 0:00:51]}  Bxf3 {[%clk 0:01:40]} 31. Re3 {[%clk 0:00:47]}  Rxh3 {[%clk 0:01:38]} 32. Bg3 {[%clk 0:00:42]}  Be4 {[%clk 0:01:36]} 33. Rf1 {[%clk 0:00:33]}  Kg6 {[%clk 0:01:32]} 34. Rg1 {[%clk 0:00:28]}  Kh7 {[%clk 0:01:15]} 35. Nf2 {[%clk 0:00:26]}  Bxc2+ {[%clk 0:01:12]} 36. Ka1 {[%clk 0:00:25]}  Rh5 {[%clk 0:01:09]} 0-1


[Site "https://www.chess.com"]

[Event "Titled Tuesday Blitz August 17 2021"]
[White "Turner, Max N"]
[Black "Ivic, Velimir"]
[WhiteFideId "447722"]
[BlackFideId "950122"]
[WhiteElo "2078"]
[BlackElo "2509"]
[Result "1-0"]
[Round "01"]
[TimeControl "180+1"]
[Date "2021.08.17"]
[WhiteClock "0:00:25"]
[BlackClock "0:00:08"]

1. d4 {[%clk 0:03:00]}  Nf6 {[%clk 0:02:58]} 2. c4 {[%clk 0:02:59]}  b6 {[%clk 0:02:56]} 3. Nc3 {[%clk 0:02:57]}  Bb7 {[%clk 0:02:56]} 4. d5 {[%clk 0:02:57]}  e5 {[%clk 0:02:45]} 5. e4 {[%clk 0:02:56]}  Bb4 {[%clk 0:02:45]} 6. Qc2 {[%clk 0:02:42]}  Bxc3+ {[%clk 0:02:45]} 7. Qxc3 {[%clk 0:02:41]}  O-O {[%clk 0:02:41]} 8. Bd3 {[%clk 0:02:39]}  d6 {[%clk 0:02:38]} 9. Ne2 {[%clk 0:02:37]}  c6 {[%clk 0:02:38]} 10. O-O {[%clk 0:02:36]}  Nbd7 {[%clk 0:02:33]} 11. Be3 {[%clk 0:02:32]}  Nc5 {[%clk 0:02:28]} 12. f3 {[%clk 0:02:28]}  cxd5 {[%clk 0:02:22]} 13. cxd5 {[%clk 0:02:29]}  Rc8 {[%clk 0:02:21]} 14. Qd2 {[%clk 0:02:30]}  Nfd7 {[%clk 0:01:56]} 15. g4 {[%clk 0:02:15]}  Nxd3 {[%clk 0:01:52]} 16. Qxd3 {[%clk 0:02:16]}  Nc5 {[%clk 0:01:53]} 17. Qd2 {[%clk 0:02:16]}  Ba6 {[%clk 0:01:52]} 18. Bxc5 {[%clk 0:01:59]}  bxc5 {[%clk 0:01:49]} 19. Rfc1 {[%clk 0:01:51]}  Rb8 {[%clk 0:01:48]} 20. Kg2 {[%clk 0:01:42]}  Bxe2 {[%clk 0:01:44]} 21. Qxe2 {[%clk 0:01:41]}  Rb4 {[%clk 0:01:45]} 22. b3 {[%clk 0:01:33]}  Qa5 {[%clk 0:01:44]} 23. Rc4 {[%clk 0:01:33]}  Rxc4 {[%clk 0:01:39]} 24. bxc4 {[%clk 0:01:22]}  Rb8 {[%clk 0:01:40]} 25. Qc2 {[%clk 0:01:23]}  Qb4 {[%clk 0:01:37]} 26. Kg3 {[%clk 0:01:18]}  Qb2 {[%clk 0:01:25]} 27. Rc1 {[%clk 0:01:18]}  Qxc2 {[%clk 0:01:13]} 28. Rxc2 {[%clk 0:01:18]}  a5 {[%clk 0:01:14]} 29. Rc3 {[%clk 0:01:15]}  a4 {[%clk 0:01:14]} 30. h4 {[%clk 0:01:07]}  f6 {[%clk 0:01:08]} 31. g5 {[%clk 0:01:07]}  Kf7 {[%clk 0:01:07]} 32. f4 {[%clk 0:01:06]}  Rb2 {[%clk 0:00:58]} 33. Ra3 {[%clk 0:01:05]}  Rb4 {[%clk 0:00:53]} 34. Rc3 {[%clk 0:01:06]}  h5 {[%clk 0:00:20]} 35. gxh6 {[%clk 0:01:04]}  gxh6 {[%clk 0:00:21]} 36. Kg4 {[%clk 0:01:04]}  Kg6 {[%clk 0:00:16]} 37. h5+ {[%clk 0:01:03]}  Kg7 {[%clk 0:00:16]} 38. fxe5 {[%clk 0:01:04]}  fxe5 {[%clk 0:00:16]} 39. Kf5 {[%clk 0:01:03]}  Kf7 {[%clk 0:00:17]} 40. Rg3 {[%clk 0:00:48]}  Rb2 {[%clk 0:00:11]} 41. Rg6 {[%clk 0:00:37]}  Rf2+ {[%clk 0:00:09]} 42. Kg4 {[%clk 0:00:38]}  Rf4+ {[%clk 0:00:06]} 43. Kg3 {[%clk 0:00:36]}  Rxe4 {[%clk 0:00:03]} 44. Rxd6 {[%clk 0:00:37]}  Rxc4 {[%clk 0:00:03]} 45. Rxh6 {[%clk 0:00:37]}  Rc2 {[%clk 0:00:02]} 46. Rc6 {[%clk 0:00:35]}  Rxa2 {[%clk 0:00:01]} 47. h6 {[%clk 0:00:30]}  Ra1 {[%clk 0:00:01]} 48. Kg2 {[%clk 0:00:30]}  Ra2+ {[%clk 0:00:02]} 49. Kg3 {[%clk 0:00:31]}  Ra1 {[%clk 0:00:02]} 50. h7 {[%clk 0:00:28]}  Kg7 {[%clk 0:00:03]} 51. Rc7+ {[%clk 0:00:28]}  Kh8 {[%clk 0:00:03]} 52. d6 {[%clk 0:00:29]}  a3 {[%clk 0:00:01]} 53. d7 {[%clk 0:00:27]}  Rd1 {[%clk 0:00:02]} 54. Rc8+ {[%clk 0:00:25]}  Kxh7 {[%clk 0:00:03]} 55. d8=Q {[%clk 0:00:26]}  Rxd8 {[%clk 0:00:03]} 56. Rxd8 {[%clk 0:00:27]}  Kg6 {[%clk 0:00:04]} 57. Ra8 {[%clk 0:00:25]}  Kf5 {[%clk 0:00:04]} 58. Kf3 {[%clk 0:00:25]}  Ke6 {[%clk 0:00:05]} 59. Ke4 {[%clk 0:00:24]}  Kd6 {[%clk 0:00:05]} 60. Ra6+ {[%clk 0:00:23]}  Kc7 {[%clk 0:00:05]} 61. Kxe5 {[%clk 0:00:24]}  Kb7 {[%clk 0:00:06]} 62. Rxa3 {[%clk 0:00:24]}  Kc6 {[%clk 0:00:07]} 63. Rc3 {[%clk 0:00:24]}  Kb5 {[%clk 0:00:08]} 64. Kd5 {[%clk 0:00:25]} 1-0


[Site "https://www.chess.com"]

[Event "Titled Tuesday Blitz August 17 2021"]
[White "Vlassov, Nikolai"]
[Black "ARTHURMOTIVATOR"]
[WhiteFideId "4103360"]
[WhiteElo "2407"]
[BlackElo "2333"]
[Result "0-1"]
[Round "01"]
[TimeControl "180+1"]
[Date "2021.08.18"]
[WhiteClock "0:00:28"]
[BlackClock "0:00:50"]

1. e4 {[%clk 0:02:09]}  e5 {[%clk 0:02:58]} 2. Bc4 {[%clk 0:02:09]}  Nf6 {[%clk 0:02:55]} 3. d3 {[%clk 0:02:07]}  Nc6 {[%clk 0:02:50]} 4. Nf3 {[%clk 0:02:07]}  h6 {[%clk 0:02:46]} 5. O-O {[%clk 0:02:06]}  d6 {[%clk 0:02:45]} 6. Nc3 {[%clk 0:02:05]}  g6 {[%clk 0:02:37]} 7. h3 {[%clk 0:02:04]}  Bg7 {[%clk 0:02:37]} 8. Be3 {[%clk 0:02:04]}  O-O {[%clk 0:02:34]} 9. d4 {[%clk 0:01:59]}  exd4 {[%clk 0:02:28]} 10. Nxd4 {[%clk 0:01:59]}  Re8 {[%clk 0:02:28]} 11. f3 {[%clk 0:01:52]}  Nh5 {[%clk 0:02:19]} 12. Qd2 {[%clk 0:01:46]}  g5 {[%clk 0:01:57]} 13. Nd5 {[%clk 0:01:43]}  Be6 {[%clk 0:01:49]} 14. c3 {[%clk 0:01:37]}  Ne5 {[%clk 0:01:45]} 15. Bb3 {[%clk 0:01:36]}  c6 {[%clk 0:01:34]} 16. Nb4 {[%clk 0:01:03]}  Bc4 {[%clk 0:01:30]} 17. Nf5 {[%clk 0:00:52]}  Bxf1 {[%clk 0:01:21]} 18. Rxf1 {[%clk 0:00:51]}  Bf8 {[%clk 0:01:17]} 19. Rd1 {[%clk 0:00:43]}  a5 {[%clk 0:01:12]} 20. Nd3 {[%clk 0:00:41]}  a4 {[%clk 0:01:08]} 21. Bc2 {[%clk 0:00:40]}  Nc4 {[%clk 0:01:07]} 22. Qe2 {[%clk 0:00:41]}  Nxe3 {[%clk 0:01:06]} 23. Qxe3 {[%clk 0:00:41]}  Qf6 {[%clk 0:01:04]} 24. Nf2 {[%clk 0:00:39]}  Qxf5 {[%clk 0:01:00]} 25. Qb6 {[%clk 0:00:29]}  Qf4 {[%clk 0:00:57]} 26. Qxb7 {[%clk 0:00:29]}  Qg3 {[%clk 0:00:52]} 27. Qxc6 {[%clk 0:00:28]}  Nf4 {[%clk 0:00:50]} 0-1


[Site "https://www.chess.com"]

[Event "Titled Tuesday Blitz August 17 2021"]
[White "Weetik, Vjacheslav"]
[Black "Golizadeh, Asghar"]
[WhiteFideId "4153472"]
[BlackFideId "12505269"]
[WhiteElo "2469"]
[BlackElo "2403"]
[Result "1/2-1/2"]
[Round "01"]
[TimeControl "180+1"]
[Date "2021.08.17"]
[WhiteClock "0:00:11"]
[BlackClock "0:00:39"]

1. d4 {[%clk 0:02:57]}  Nf6 {[%clk 0:02:54]} 2. Bf4 {[%clk 0:02:55]}  e6 {[%clk 0:02:36]} 3. e3 {[%clk 0:02:51]}  d5 {[%clk 0:02:36]} 4. Nd2 {[%clk 0:02:51]}  c5 {[%clk 0:02:36]} 5. c3 {[%clk 0:02:51]}  Nc6 {[%clk 0:02:36]} 6. Bd3 {[%clk 0:02:52]}  Bd6 {[%clk 0:02:36]} 7. Bxd6 {[%clk 0:02:52]}  Qxd6 {[%clk 0:02:36]} 8. f4 {[%clk 0:02:52]}  cxd4 {[%clk 0:02:32]} 9. cxd4 {[%clk 0:02:52]}  Bd7 {[%clk 0:02:31]} 10. a3 {[%clk 0:02:52]}  O-O {[%clk 0:02:32]} 11. Ngf3 {[%clk 0:02:52]}  Rac8 {[%clk 0:02:23]} 12. Ne5 {[%clk 0:02:47]}  Ne4 {[%clk 0:02:13]} 13. Nxe4 {[%clk 0:02:33]}  dxe4 {[%clk 0:02:13]} 14. Bxe4 {[%clk 0:02:34]}  Nxe5 {[%clk 0:02:12]} 15. fxe5 {[%clk 0:02:29]}  Qb6 {[%clk 0:02:12]} 16. O-O {[%clk 0:02:23]}  Qxb2 {[%clk 0:02:09]} 17. Qd3 {[%clk 0:02:03]}  h6 {[%clk 0:01:58]} 18. Rab1 {[%clk 0:02:00]}  Qa2 {[%clk 0:01:47]} 19. Rxb7 {[%clk 0:01:56]}  Bc6 {[%clk 0:01:44]} 20. Bxc6 {[%clk 0:01:47]}  Rxc6 {[%clk 0:01:45]} 21. Rxa7 {[%clk 0:01:38]}  Rc2 {[%clk 0:01:11]} 22. Qe4 {[%clk 0:01:27]}  Re2 {[%clk 0:01:11]} 23. Qf3 {[%clk 0:01:18]}  Kh8 {[%clk 0:00:59]} 24. h3 {[%clk 0:01:03]}  Qd2 {[%clk 0:00:58]} 25. Kh1 {[%clk 0:00:37]}  Rxe3 {[%clk 0:00:52]} 26. Qf4 {[%clk 0:00:35]}  Qd3 {[%clk 0:00:38]} 27. Rxf7 {[%clk 0:00:24]}  Rxf7 {[%clk 0:00:37]} 28. Qxf7 {[%clk 0:00:24]}  Rxh3+ {[%clk 0:00:37]} 29. gxh3 {[%clk 0:00:09]}  Qxh3+ {[%clk 0:00:37]} 30. Kg1 {[%clk 0:00:10]}  Qg3+ {[%clk 0:00:38]} 31. Kh1 {[%clk 0:00:10]}  Qh3+ {[%clk 0:00:39]} 32. Kg1 {[%clk 0:00:11]}  Qg3+ {[%clk 0:00:38]} 33. Kh1 {[%clk 0:00:11]}  Qh3+ {[%clk 0:00:39]} 1/2-1/2


[Site "https://www.chess.com"]

[Event "Titled Tuesday Blitz August 17 2021"]
[White "Yordanov, Nikolay Plamenov"]
[Black "Maksimovic, Bojan"]
[WhiteFideId "2907445"]
[BlackFideId "14408120"]
[WhiteElo "2248"]
[BlackElo "2439"]
[Result "1/2-1/2"]
[Round "01"]
[TimeControl "180+1"]
[Date "2021.08.17"]
[WhiteClock "0:00:04"]
[BlackClock "0:00:06"]

1. d4 {[%clk 0:03:00]}  Nf6 {[%clk 0:02:59]} 2. Bf4 {[%clk 0:03:01]}  c5 {[%clk 0:02:56]} 3. e3 {[%clk 0:03:00]}  b6 {[%clk 0:02:54]} 4. Nf3 {[%clk 0:03:00]}  Bb7 {[%clk 0:02:54]} 5. c3 {[%clk 0:03:00]}  d6 {[%clk 0:02:54]} 6. Bd3 {[%clk 0:02:59]}  g6 {[%clk 0:02:54]} 7. Nbd2 {[%clk 0:02:59]}  Bg7 {[%clk 0:02:48]} 8. h3 {[%clk 0:03:00]}  O-O {[%clk 0:02:45]} 9. O-O {[%clk 0:03:00]}  Nbd7 {[%clk 0:02:32]} 10. Qe2 {[%clk 0:02:59]}  Rc8 {[%clk 0:02:13]} 11. a4 {[%clk 0:02:58]}  Nh5 {[%clk 0:02:01]} 12. Bh2 {[%clk 0:02:58]}  e5 {[%clk 0:02:00]} 13. dxe5 {[%clk 0:02:55]}  Nxe5 {[%clk 0:01:58]} 14. Ba6 {[%clk 0:02:50]}  Bxa6 {[%clk 0:01:54]} 15. Qxa6 {[%clk 0:02:49]}  Qe7 {[%clk 0:01:48]} 16. Nxe5 {[%clk 0:02:35]}  dxe5 {[%clk 0:01:36]} 17. a5 {[%clk 0:02:35]}  Rfd8 {[%clk 0:01:26]} 18. Rfd1 {[%clk 0:02:32]}  Nf6 {[%clk 0:00:59]} 19. axb6 {[%clk 0:02:24]}  axb6 {[%clk 0:00:58]} 20. Nc4 {[%clk 0:02:16]}  Ne4 {[%clk 0:00:56]} 21. Qxb6 {[%clk 0:02:04]}  Re8 {[%clk 0:00:39]} 22. f3 {[%clk 0:01:48]}  Rb8 {[%clk 0:00:38]} 23. Qa7 {[%clk 0:01:33]}  Qe6 {[%clk 0:00:28]} 24. Qa6 {[%clk 0:01:16]}  Ng5 {[%clk 0:00:13]} 25. Rd6 {[%clk 0:01:02]}  Nxh3+ {[%clk 0:00:08]} 26. gxh3 {[%clk 0:00:51]}  Qxh3 {[%clk 0:00:09]} 27. Qc6 {[%clk 0:00:51]}  e4 {[%clk 0:00:05]} 28. Rf1 {[%clk 0:00:48]}  exf3 {[%clk 0:00:05]} 29. Qxf3 {[%clk 0:00:48]}  Qh4 {[%clk 0:00:05]} 30. Qf4 {[%clk 0:00:39]}  Qe7 {[%clk 0:00:05]} 31. Rd2 {[%clk 0:00:32]}  Ra8 {[%clk 0:00:05]} 32. Rdf2 {[%clk 0:00:32]}  f5 {[%clk 0:00:05]} 33. Nb6 {[%clk 0:00:27]}  Rad8 {[%clk 0:00:04]} 34. Nc4 {[%clk 0:00:20]}  h5 {[%clk 0:00:04]} 35. Bg3 {[%clk 0:00:17]}  Kh7 {[%clk 0:00:05]} 36. Bh4 {[%clk 0:00:17]}  Bf6 {[%clk 0:00:05]} 37. Bxf6 {[%clk 0:00:17]}  Qxf6 {[%clk 0:00:06]} 38. Rg2 {[%clk 0:00:14]}  Qg7 {[%clk 0:00:04]} 39. Qh4 {[%clk 0:00:12]}  Rd7 {[%clk 0:00:03]} 40. Rxf5 {[%clk 0:00:12]}  gxf5 {[%clk 0:00:04]} 41. Rxg7+ {[%clk 0:00:11]}  Rxg7+ {[%clk 0:00:05]} 42. Kh2 {[%clk 0:00:12]}  Re6 {[%clk 0:00:05]} 43. Nd2 {[%clk 0:00:08]}  Rxe3 {[%clk 0:00:04]} 44. Qxh5+ {[%clk 0:00:08]}  Kg8 {[%clk 0:00:04]} 45. Qxf5 {[%clk 0:00:04]}  Re2+ {[%clk 0:00:05]} 46. Kh3 {[%clk 0:00:04]}  Rxd2 {[%clk 0:00:05]} 47. Qe6+ {[%clk 0:00:03]}  Kh7 {[%clk 0:00:05]} 48. Qe4+ {[%clk 0:00:03]}  Kg8 {[%clk 0:00:05]} 49. Qe8+ {[%clk 0:00:04]}  Kh7 {[%clk 0:00:05]} 50. Qh5+ {[%clk 0:00:04]}  Kg8 {[%clk 0:00:06]} 51. Qe8+ {[%clk 0:00:04]}  Kh7 {[%clk 0:00:06]} 52. Qh5+ {[%clk 0:00:05]}  Kg8 {[%clk 0:00:06]} 53. Qe8+ {[%clk 0:00:04]} 1/2-1/2


[Site "https://www.chess.com"]